fUSD/lending_fUSD_20240104
["ID","MTS","AMOUNT","RATE_DAILY","PERIOD"]
[310179399,1704390660352,-1003.74,0.00033512,2]
[310179400,1704390660362,-150.0,0.00033548,2]
[310179401,1704390660372,-150.0,0.00033566,2]
[310179402,1704390660381,-206.57184,0.00033575,2]
[310179403,1704390660391,-199.09,0.00033578,2]
[310179404,1704390660400,-300.0,0.00033587,2]
[310179405,1704390660410,-161.57752695,0.00033598,2]
[310179406,1704390660419,-739.27549042,0.00033598,2]
[310179407,1704390660428,-157.4003949,0.00033598,2]
[310179408,1704390660437,-248.21973493,0.00033598,2]
[310179409,1704390660447,-1427.19110698,0.00033598,2]
[310179410,1704390660457,-981.12234771,0.00033598,2]
[310179411,1704390660466,-157.84,0.000336,2]
[310179412,1704390660475,-157.84,0.000336,2]
[310179413,1704390660485,-157.84,0.000336,2]
[310179414,1704390660494,-157.84,0.000336,2]
[310179415,1704390660504,-157.84,0.000336,2]
[310179416,1704390660513,-157.84,0.000336,2]
[310179417,1704390660522,-157.84,0.000336,2]
[310179418,1704390660532,-157.84,0.000336,2]
[310179419,1704390660541,-157.84,0.000336,2]
[310179420,1704390660551,-157.84,0.000336,2]
[310179421,1704390660562,-157.84,0.000336,2]
[310179422,1704390660573,-157.84,0.000336,2]
[310179423,1704390660584,-157.84,0.000336,2]
[310179424,1704390660595,-157.84,0.000336,2]
[310179425,1704390660605,-157.84,0.000336,2]
[310179426,1704390660618,-157.84,0.000336,2]
[310179427,1704390660629,-157.84,0.000336,2]
[310179428,1704390660640,-157.84,0.000336,2]
[310179429,1704390660651,-157.84,0.000336,2]
[310179430,1704390660664,-157.84,0.000336,2]
[310179431,1704390660743,-222.41,0.00033614,2]
[310179432,1704390660754,-1500.0,0.00033634,2]
[310179433,1704390660766,-640.0,0.00033635,2]
[310179434,1704390660777,-165.59,0.00033664,2]
[310179435,1704390660789,-150.0,0.0003367,2]
[310179436,1704390660802,-150.0,0.00033673,2]
[310179437,1704390660813,-151.6899436,0.00033695,2]
[310179438,1704390660827,-500.0,0.00033697,2]
[310179439,1704390660838,-500.0,0.00033697,2]
[310179440,1704390660849,-500.0,0.00033697,2]
[310179441,1704390660861,-1207.47,0.00033697,2]
[310179442,1704390660872,-2681.4,0.00033697,2]
[310179443,1704390660884,-150.0,0.00033697,2]
[310179444,1704390660894,-357630.84860726,0.00033698,3]
[310179445,1704390660905,-500.0,0.00033698,2]
[310179446,1704390660926,-500.0,0.00033698,2]
[310179447,1704390660938,-500.0,0.00033698,2]
[310179448,1704390660949,-500.0,0.00033698,2]
[310179449,1704390660961,-500.0,0.00033698,2]
[310179450,1704390660972,-500.0,0.00033698,2]
[310179451,1704390660984,-500.0,0.00033698,2]
[310179452,1704390660996,-500.0,0.00033698,2]
[310179453,1704390661007,-500.0,0.00033698,2]
[310179454,1704390661017,-500.0,0.00033698,2]
[310179455,1704390661031,-500.0,0.00033698,2]
[310179456,1704390661043,-500.0,0.00033698,2]
[310179457,1704390661054,-542.0779832,0.00033698,2]
[310179458,1704390661065,-500.0,0.00033698,2]
[310179459,1704390661075,-500.0,0.00033698,2]
[310179460,1704390661085,-500.0,0.00033698,2]
[310179461,1704390661096,-500.0,0.00033698,2]
[310179462,1704390661107,-415.69005289,0.00033698,2]
[310179463,1704390661117,-500.0,0.00033698,2]
[310179464,1704390661129,-529.9,0.00033698,2]
[310179465,1704390661140,-500.0,0.00033698,2]
[310179466,1704390661150,-500.0,0.00033698,2]
[310179467,1704390661160,-591.73,0.00033698,2]
[310179468,1704390661177,-500.0,0.00033698,2]
[310179469,1704390661187,-509.87856514,0.00033698,2]
[310179470,1704390661197,-500.0,0.00033698,2]
[310179471,1704390661208,-500.0,0.00033698,2]
[310179472,1704390661218,-500.0,0.00033698,2]
[310179473,1704390661229,-500.0,0.00033698,2]
[310179474,1704390661239,-500.0,0.00033698,2]
[310179475,1704390661250,-500.0,0.00033698,2]
[310179476,1704390661260,-500.0,0.00033698,2]
[310179477,1704390661270,-500.0,0.00033698,2]
[310179478,1704390661280,-500.0,0.00033698,2]
[310179479,1704390661289,-500.0,0.00033698,2]
[310179480,1704390661299,-500.0,0.00033698,2]
[310179481,1704390661309,-500.0,0.00033698,2]
[310179482,1704390661318,-500.0,0.00033698,2]
[310179483,1704390661328,-500.0,0.00033698,2]
[310179484,1704390661338,-500.0,0.00033698,2]
[310179485,1704390661347,-500.0,0.00033698,2]
[310179486,1704390661357,-500.0,0.00033698,2]
[310179487,1704390661366,-500.0,0.00033698,2]
[310179488,1704390661377,-500.0,0.00033698,2]
[310179489,1704390661386,-500.0,0.00033698,2]
[310179490,1704390661396,-500.0,0.00033698,2]
[310179491,1704390661405,-500.0,0.00033698,2]
[310179492,1704390661418,-500.0,0.00033698,2]
[310179493,1704390661427,-500.0,0.00033698,2]
[310179494,1704390661437,-500.0,0.00033698,2]
[310179495,1704390661447,-500.0,0.00033698,2]
[310179496,1704390661457,-500.0,0.00033698,2]
[310179497,1704390661466,-500.0,0.00033698,2]
[310179498,1704390661476,-500.0,0.00033698,2]
[310179499,1704390661486,-500.0,0.00033698,2]
[310179500,1704390661495,-500.0,0.00033698,2]
[310179501,1704390661505,-199.78334251,0.00033698,2]
[310179502,1704390661515,-626.12266492,0.00033698,2]
[310179503,1704390661524,-515.46582629,0.00033698,2]
[310179504,1704390661534,-500.0,0.00033698,2]
[310179505,1704390661544,-408.04375707,0.00033698,2]
[310179506,1704390661553,-500.0,0.00033698,2]
[310179507,1704390661562,-500.0,0.00033698,2]
[310179508,1704390661572,-500.0,0.00033698,2]
[310179509,1704390661582,-500.0,0.00033698,2]
[310179510,1704390661591,-500.0,0.00033698,2]
[310179511,1704390661600,-541.63960974,0.00033698,2]
[310179512,1704390661609,-902.69,0.00033698,2]
[310179513,1704390661619,-500.0,0.00033698,2]
[310179514,1704390661629,-500.0,0.00033698,2]
[310179515,1704390661638,-500.0,0.00033698,2]
[310179516,1704390661648,-500.0,0.00033698,2]
[310179517,1704390661658,-500.0,0.00033698,2]
[310179518,1704390661671,-500.0,0.00033698,2]
[310179519,1704390661680,-500.0,0.00033698,2]
[310179520,1704390661689,-500.0,0.00033698,2]
[310179521,1704390661699,-500.0,0.00033698,2]
[310179522,1704390661708,-500.0,0.00033698,2]
[310179523,1704390661717,-500.0,0.00033698,2]
[310179524,1704390661727,-500.0,0.00033698,2]
[310179525,1704390661736,-232.64601086,0.00033698,2]
[310179526,1704390661746,-620.94020668,0.00033698,2]
[310179527,1704390661756,-509.58342601,0.00033698,2]
[310179528,1704390661765,-500.0,0.00033698,2]
[310179529,1704390661775,-500.0,0.00033698,2]
[310179530,1704390661784,-500.0,0.00033698,2]
[310179531,1704390661793,-456.588672,0.00033698,2]
[310179532,1704390661803,-981.17,0.00033698,2]
[310179533,1704390661813,-500.0,0.00033698,2]
[310179534,1704390661822,-500.0,0.00033698,2]
[310179535,1704390661832,-500.0,0.00033698,2]
[310179536,1704390661842,-500.0,0.00033698,2]
[310179537,1704390661852,-1000.0,0.00033698,2]
[310179538,1704390661861,-500.0,0.00033698,2]
[310179539,1704390661871,-500.0,0.00033698,2]
[310179540,1704390661880,-500.0,0.00033698,2]
[310179541,1704390661890,-500.0,0.00033698,2]
[310179542,1704390661899,-500.0,0.00033698,2]
[310179543,1704390661909,-500.0,0.00033698,2]
[310179544,1704390661920,-163.93034698,0.00033698,2]
[310179545,1704390661930,-291.59150882,0.00033698,2]
[310179546,1704390661939,-500.0,0.00033698,2]
[310179547,1704390661949,-500.0,0.00033698,2]
[310179548,1704390661958,-500.0,0.00033698,2]
[310179549,1704390661967,-522.52750473,0.00033698,2]
[310179550,1704390661978,-500.0,0.00033698,2]
[310179551,1704390661987,-500.0,0.00033698,2]
[310179552,1704390661996,-261.31017413,0.00033698,2]
[310179553,1704390662006,-500.0,0.00033698,2]
[310179554,1704390662015,-500.0,0.00033698,2]
[310179555,1704390662024,-500.0,0.00033698,2]
[310179556,1704390662034,-631.52442897,0.00033698,2]
[310179557,1704390662044,-500.0,0.00033698,2]
[310179558,1704390662054,-500.0,0.00033698,2]
[310179559,1704390662063,-500.0,0.00033698,2]
[310179560,1704390662072,-500.0,0.00033698,2]
[310179561,1704390662082,-491.30923689,0.00033698,2]
[310179562,1704390662091,-500.0,0.00033698,2]
[310179563,1704390662100,-500.0,0.00033698,2]
[310179564,1704390662110,-500.0,0.00033698,2]
[310179565,1704390662120,-500.0,0.00033698,2]
[310179566,1704390662129,-500.0,0.00033698,2]
[310179567,1704390662141,-481.58074866,0.00033698,2]
[310179568,1704390662152,-500.0,0.00033698,2]
[310179569,1704390662162,-500.0,0.00033698,2]
[310179570,1704390662173,-500.0,0.00033698,2]
[310179571,1704390662182,-500.0,0.00033698,2]
[310179572,1704390662192,-500.0,0.00033698,2]
[310179573,1704390662201,-500.0,0.00033698,2]
[310179574,1704390662210,-500.0,0.00033698,2]
[310179575,1704390662219,-500.0,0.00033698,2]
[310179576,1704390662229,-500.0,0.00033698,2]
[310179577,1704390662238,-584.15,0.00033698,2]
[310179578,1704390662248,-500.0,0.00033698,2]
[310179579,1704390662258,-521.08,0.00033698,2]
[310179580,1704390662266,-500.0,0.00033698,2]
[310179581,1704390662276,-500.0,0.00033698,2]
[310179582,1704390662285,-500.0,0.00033698,2]
[310179583,1704390662294,-500.0,0.00033698,2]
[310179584,1704390662303,-500.0,0.00033698,2]
[310179585,1704390662312,-500.0,0.00033698,2]
[310179586,1704390662321,-412.19,0.00033698,2]
[310179587,1704390662331,-579.94,0.00033698,2]
[310179588,1704390662340,-500.0,0.00033698,2]
[310179589,1704390662350,-500.0,0.00033698,2]
[310179590,1704390662359,-500.0,0.00033698,2]
[310179591,1704390662368,-500.0,0.00033698,2]
[310179592,1704390662378,-500.0,0.00033698,2]
[310179593,1704390662387,-500.0,0.00033698,2]
[310179594,1704390662397,-500.0,0.00033698,2]
[310179595,1704390662406,-500.0,0.00033698,2]
[310179596,1704390662418,-154.79,0.00033698,2]
[310179597,1704390662426,-500.0,0.00033698,2]
[310179598,1704390662435,-500.0,0.00033698,2]
[310179599,1704390662445,-500.0,0.00033698,2]
[310179600,1704390662455,-500.0,0.00033698,2]
[310179601,1704390662465,-500.0,0.00033698,2]
[310179602,1704390662474,-500.0,0.00033698,2]
[310179603,1704390662483,-500.0,0.00033698,2]
[310179604,1704390662492,-500.0,0.00033698,2]
[310179605,1704390662501,-510.70568301,0.00033698,2]
[310179606,1704390662511,-500.0,0.00033698,2]
[310179607,1704390662520,-500.0,0.00033698,2]
[310179608,1704390662530,-500.0,0.00033698,2]
[310179609,1704390662539,-500.0,0.00033698,2]
[310179610,1704390662549,-419.76112927,0.00033698,2]
[310179611,1704390662558,-500.0,0.00033698,2]
[310179612,1704390662568,-500.0,0.00033698,2]
[310179613,1704390662576,-497.31763181,0.00033698,2]
[310179614,1704390662597,-500.0,0.00033698,2]
[310179615,1704390662607,-500.0,0.00033698,2]
[310179616,1704390662616,-500.0,0.00033698,2]
[310179617,1704390662626,-500.0,0.00033698,2]
[310179618,1704390662636,-500.0,0.00033698,2]
[310179619,1704390662646,-567.63987347,0.00033698,2]
[310179620,1704390662655,-500.0,0.00033698,2]
[310179621,1704390662665,-500.0,0.00033698,2]
[310179622,1704390662674,-150.0,0.00033698,2]
[310179623,1704390662683,-500.0,0.00033698,2]
[310179624,1704390662692,-500.0,0.00033698,2]
[310179625,1704390662702,-500.0,0.00033698,2]
[310179626,1704390662711,-500.0,0.00033698,2]
[310179627,1704390662720,-500.0,0.00033698,2]
[310179628,1704390662730,-539.84,0.00033698,2]
[310179629,1704390662739,-500.0,0.00033698,2]
[310179630,1704390662749,-354.92916518,0.00033698,2]
[310179631,1704390662758,-500.0,0.00033698,2]
[310179632,1704390662767,-500.0,0.00033698,2]
[310179633,1704390662777,-527.22,0.00033698,2]
[310179634,1704390662787,-500.0,0.00033698,2]
[310179635,1704390662796,-500.0,0.00033698,2]
[310179636,1704390662805,-500.0,0.00033698,2]
[310179637,1704390662814,-500.0,0.00033698,2]
[310179638,1704390662824,-172.15086126,0.00033698,2]
[310179639,1704390662834,-500.0,0.00033698,2]
[310179640,1704390662844,-500.0,0.00033698,2]
[310179641,1704390662853,-500.0,0.00033698,2]
[310179642,1704390662863,-500.0,0.00033698,2]
[310179643,1704390662872,-500.0,0.00033698,2]
[310179644,1704390662882,-500.0,0.00033698,2]
[310179645,1704390662892,-674.84,0.00033698,2]
[310179646,1704390662901,-500.0,0.00033698,2]
[310179647,1704390662911,-503.61,0.00033698,2]
[310179648,1704390662923,-500.0,0.00033698,2]
[310179649,1704390662932,-500.0,0.00033698,2]
[310179650,1704390662941,-500.0,0.00033698,2]
[310179651,1704390662950,-500.0,0.00033698,2]
[310179652,1704390662959,-500.0,0.00033698,2]
[310179653,1704390662969,-500.0,0.00033698,2]
[310179654,1704390662978,-496.30541697,0.00033698,2]
[310179655,1704390662988,-500.0,0.00033698,2]
[310179656,1704390662997,-936.08,0.00033698,2]
[310179657,1704390663006,-500.0,0.00033698,2]
[310179658,1704390663015,-500.0,0.00033698,2]
[310179659,1704390663024,-500.0,0.00033698,2]
[310179660,1704390663033,-500.0,0.00033698,2]
[310179661,1704390663042,-500.0,0.00033698,2]
[310179662,1704390663051,-500.0,0.00033698,2]
[310179663,1704390663061,-500.0,0.00033698,2]
[310179664,1704390663070,-500.0,0.00033698,2]
[310179665,1704390663079,-500.0,0.00033698,2]
[310179666,1704390663088,-500.0,0.00033698,2]
[310179667,1704390663097,-500.0,0.00033698,2]
[310179668,1704390663106,-500.0,0.00033698,2]
[310179669,1704390663115,-500.0,0.00033698,2]
[310179670,1704390663124,-611.2703537,0.00033698,2]
[310179671,1704390663134,-228.75395018,0.00033698,2]
[310179672,1704390663145,-500.0,0.00033698,2]
[310179673,1704390663155,-500.0,0.00033698,2]
[310179674,1704390663168,-1562.75,0.00033698,2]
[310179675,1704390663178,-500.0,0.00033698,2]
[310179676,1704390663187,-500.0,0.00033698,2]
[310179677,1704390663197,-609.88,0.00033698,2]
[310179678,1704390663206,-617.22,0.00033698,2]
[310179679,1704390663215,-500.0,0.00033698,2]
[310179680,1704390663225,-500.0,0.00033698,2]
[310179681,1704390663234,-500.0,0.00033698,2]
[310179682,1704390663243,-500.0,0.00033698,2]
[310179683,1704390663252,-865.18,0.00033698,2]
[310179684,1704390663262,-500.0,0.00033698,2]
[310179685,1704390663271,-500.0,0.00033698,2]
[310179686,1704390663281,-500.0,0.00033698,2]
[310179687,1704390663290,-715.32,0.00033698,2]
[310179688,1704390663299,-500.0,0.00033698,2]
[310179689,1704390663309,-500.0,0.00033698,2]
[310179690,1704390663319,-1738.62,0.00033698,2]
[310179691,1704390663328,-500.0,0.00033698,2]
[310179692,1704390663338,-500.0,0.00033698,2]
[310179693,1704390663347,-500.0,0.00033698,2]
[310179694,1704390663358,-500.0,0.00033698,2]
[310179695,1704390663367,-942.91,0.00033698,2]
[310179696,1704390663376,-500.0,0.00033698,2]
[310179697,1704390663386,-500.0,0.00033698,2]
[310179698,1704390663395,-500.0,0.00033698,2]
[310179699,1704390663404,-1042.94,0.00033698,2]
[310179700,1704390663416,-500.0,0.00033698,2]
[310179701,1704390663426,-3818.52,0.00033698,2]
[310179702,1704390663435,-500.0,0.00033698,2]
[310179703,1704390663444,-575.83,0.00033698,2]
[310179704,1704390663453,-665.59,0.00033698,2]
[310179705,1704390663462,-1372.69,0.00033698,2]
[310179706,1704390663471,-500.0,0.00033698,2]
[310179707,1704390663480,-500.0,0.00033698,2]
[310179708,1704390663489,-16745.67,0.00033698,2]
[310179709,1704390663497,-500.0,0.00033698,2]
[310179710,1704390663506,-500.0,0.00033698,2]
[310179711,1704390663515,-721.34,0.00033698,2]
[310179712,1704390663524,-3173.06,0.00033698,2]
[310179713,1704390663533,-500.0,0.00033698,2]
[310179714,1704390663542,-1815.37,0.00033698,2]
[310179715,1704390663551,-500.0,0.00033698,2]
[310179716,1704390663560,-500.0,0.00033698,2]
[310179717,1704390663569,-500.0,0.00033698,2]
[310179718,1704390663578,-500.0,0.00033698,2]
[310179719,1704390663588,-2530.3,0.00033698,2]
[310179720,1704390663598,-666.11,0.00033698,2]
[310179721,1704390663607,-500.0,0.00033698,2]
[310179722,1704390663616,-500.0,0.00033698,2]
[310179723,1704390663626,-500.0,0.00033698,2]
[310179724,1704390663635,-380.89275851,0.00033698,2]
[310179725,1704390663644,-500.0,0.00033698,2]
[310179726,1704390663653,-1225.76,0.00033698,2]
[310179727,1704390663663,-500.0,0.00033698,2]
[310179728,1704390663673,-500.0,0.00033698,2]
[310179729,1704390663682,-1638.37,0.00033698,2]
[310179730,1704390663691,-674.49,0.00033698,2]
[310179731,1704390663701,-1957.6,0.00033698,2]
[310179732,1704390663710,-500.0,0.00033698,2]
[310179733,1704390663721,-500.0,0.00033698,2]
[310179734,1704390663732,-500.0,0.00033698,2]
[310179735,1704390663742,-500.0,0.00033698,2]
[310179736,1704390663752,-1227.69,0.00033698,2]
[310179737,1704390663763,-500.0,0.00033698,2]
[310179738,1704390663773,-500.0,0.00033698,2]
[310179739,1704390663783,-1115.6,0.00033698,2]
[310179740,1704390663793,-1502.1,0.00033698,2]
[310179741,1704390663802,-500.0,0.00033698,2]
[310179742,1704390663812,-500.0,0.00033698,2]
[310179743,1704390663822,-500.0,0.00033698,2]
[310179744,1704390663832,-601.13,0.00033698,2]
[310179745,1704390663841,-500.0,0.00033698,2]
[310179746,1704390663851,-1095.01,0.00033698,2]
[310179747,1704390663860,-1112.32,0.00033698,2]
[310179748,1704390663869,-3635.49,0.00033698,2]
[310179749,1704390663879,-500.0,0.00033698,2]
[310179750,1704390663889,-500.0,0.00033698,2]
[310179751,1704390663899,-500.0,0.00033698,2]
[310179752,1704390663909,-641.97,0.00033698,2]
[310179753,1704390663919,-683.22,0.00033698,2]
[310179754,1704390663929,-500.0,0.00033698,2]
[310179755,1704390663939,-908.85,0.00033698,2]
[310179756,1704390663950,-1548.81,0.00033698,2]
[310179757,1704390663960,-4115.94,0.00033698,2]
[310179758,1704390663970,-630.5,0.00033698,2]
[310179759,1704390663979,-602.19,0.00033698,2]
[310179760,1704390663989,-500.0,0.00033698,2]
[310179761,1704390663999,-500.0,0.00033698,2]
[310179762,1704390664009,-500.0,0.00033698,2]
[310179763,1704390664018,-1531.01,0.00033698,2]
[310179764,1704390664028,-1981.93,0.00033698,2]
[310179765,1704390664037,-321.047187,0.00033698,2]
[310179766,1704390664047,-1065.75,0.00033698,2]
[310179767,1704390664056,-587.25,0.00033698,2]
[310179768,1704390664066,-1067.69,0.00033698,2]
[310179769,1704390664076,-511.14,0.00033698,2]
[310179770,1704390664085,-500.0,0.00033698,2]
[310179771,1704390664095,-720.1,0.00033698,2]
[310179772,1704390664105,-500.0,0.00033698,2]
[310179773,1704390664114,-1768.26,0.00033698,2]
[310179774,1704390664126,-6881.5,0.00033698,2]
[310179775,1704390664136,-500.0,0.00033698,2]
[310179776,1704390664147,-500.0,0.00033698,2]
[310179777,1704390664158,-500.0,0.00033698,2]
[310179778,1704390664169,-2064.6,0.00033698,2]
[310179779,1704390664179,-1086.35,0.00033698,2]
[310179780,1704390664189,-1480.81,0.00033698,2]
[310179781,1704390664198,-526.27,0.00033698,2]
[310179782,1704390664208,-500.0,0.00033698,2]
[310179783,1704390664219,-500.0,0.00033698,2]
[310179784,1704390664228,-500.0,0.00033698,2]
[310179785,1704390664239,-819.26,0.00033698,2]
[310179786,1704390664249,-835.91,0.00033698,2]
[310179787,1704390664259,-532.1,0.00033698,2]
[310179788,1704390664269,-500.0,0.00033698,2]
[310179789,1704390664279,-500.0,0.00033698,2]
[310179790,1704390664288,-801.4,0.00033698,2]
[310179791,1704390664298,-621.08,0.00033698,2]
[310179792,1704390664308,-507.88,0.00033698,2]
[310179793,1704390664318,-500.0,0.00033698,2]
[310179794,1704390664327,-6437.46,0.00033698,2]
[310179795,1704390664337,-500.0,0.00033698,2]
[310179796,1704390664347,-593.76,0.00033698,2]
[310179797,1704390664357,-843.26,0.00033698,2]
[310179798,1704390664366,-500.0,0.00033698,2]
[310179799,1704390664376,-1704.85,0.00033698,2]
[310179800,1704390664385,-1390.54,0.00033698,2]
[310179801,1704390664395,-500.0,0.00033698,2]
[310179802,1704390664405,-500.0,0.00033698,2]
[310179803,1704390664416,-500.0,0.00033698,2]
[310179804,1704390664425,-500.0,0.00033698,2]
[310179805,1704390664435,-500.0,0.00033698,2]
[310179806,1704390664445,-589.64,0.00033698,2]
[310179807,1704390664455,-500.0,0.00033698,2]
[310179808,1704390664465,-500.0,0.00033698,2]
[310179809,1704390664475,-500.0,0.00033698,2]
[310179810,1704390664484,-218.68658482,0.00033698,2]
[310179811,1704390664494,-500.0,0.00033698,2]
[310179812,1704390664505,-2804.91,0.00033698,2]
[310179813,1704390664514,-500.0,0.00033698,2]
[310179814,1704390664524,-500.0,0.00033698,2]
[310179815,1704390664533,-500.0,0.00033698,2]
[310179816,1704390664543,-500.0,0.00033698,2]
[310179817,1704390664553,-1132.74,0.00033698,2]
[310179818,1704390664564,-500.0,0.00033698,2]
[310179819,1704390664574,-1027.11,0.00033698,2]
[310179820,1704390664586,-500.0,0.00033698,2]
[310179821,1704390664596,-3550.71,0.00033698,2]
[310179822,1704390664606,-500.0,0.00033698,2]
[310179823,1704390664620,-500.0,0.00033698,2]
[310179824,1704390664631,-500.0,0.00033698,2]
[310179825,1704390664642,-500.0,0.00033698,2]
[310179826,1704390664653,-500.0,0.00033698,2]
[310179827,1704390664664,-500.0,0.00033698,2]
[310179828,1704390664675,-500.0,0.00033698,2]
[310179829,1704390664685,-1883.66,0.00033698,2]
[310179830,1704390664695,-1301.67,0.00033698,2]
[310179831,1704390664705,-569.76,0.00033698,2]
[310179832,1704390664715,-980.49,0.00033698,2]
[310179833,1704390664725,-500.0,0.00033698,2]
[310179834,1704390664734,-500.0,0.00033698,2]
[310179835,1704390664744,-1800.67,0.00033698,2]
[310179836,1704390664754,-500.0,0.00033698,2]
[310179837,1704390664764,-1779.82,0.00033698,2]
[310179838,1704390664774,-2066.07,0.00033698,2]
[310179839,1704390664783,-500.0,0.00033698,2]
[310179840,1704390664793,-500.0,0.00033698,2]
[310179841,1704390664805,-500.0,0.00033698,2]
[310179842,1704390664815,-933.35,0.00033698,2]
[310179843,1704390664826,-500.0,0.00033698,2]
[310179844,1704390664836,-1036.48,0.00033698,2]
[310179845,1704390664846,-796.42,0.00033698,2]
[310179846,1704390664856,-500.0,0.00033698,2]
[310179847,1704390664867,-500.0,0.00033698,2]
[310179848,1704390664877,-859.77,0.00033698,2]
[310179849,1704390664888,-500.0,0.00033698,2]
[310179850,1704390664899,-500.0,0.00033698,2]
[310179851,1704390664909,-3208.71,0.00033698,2]
[310179852,1704390664921,-500.0,0.00033698,2]
[310179853,1704390664931,-500.0,0.00033698,2]
[310179854,1704390664941,-885.63,0.00033698,2]
[310179855,1704390664952,-500.0,0.00033698,2]
[310179856,1704390664962,-725.61,0.00033698,2]
[310179857,1704390664972,-4028.33,0.00033698,2]
[310179858,1704390664982,-500.0,0.00033698,2]
[310179859,1704390664992,-500.0,0.00033698,2]
[310179860,1704390665002,-947.57,0.00033698,2]
[310179861,1704390665012,-711.27,0.00033698,2]
[310179862,1704390665022,-645.27,0.00033698,2]
[310179863,1704390665031,-500.0,0.00033698,2]
[310179864,1704390665042,-1162.29,0.00033698,2]
[310179865,1704390665053,-500.0,0.00033698,2]
[310179866,1704390665068,-1792.09,0.00033698,2]
[310179867,1704390665079,-500.0,0.00033698,2]
[310179868,1704390665089,-500.0,0.00033698,2]
[310179869,1704390665099,-500.0,0.00033698,2]
[310179870,1704390665110,-3077.15,0.00033698,2]
[310179871,1704390665120,-500.0,0.00033698,2]
[310179872,1704390665130,-500.0,0.00033698,2]
[310179873,1704390665140,-500.0,0.00033698,2]
[310179874,1704390665153,-1099.16,0.00033698,2]
[310179875,1704390665163,-500.0,0.00033698,2]
[310179876,1704390665175,-500.0,0.00033698,2]
[310179877,1704390665185,-500.0,0.00033698,2]
[310179878,1704390665196,-500.0,0.00033698,2]
[310179879,1704390665206,-4753.61,0.00033698,2]
[310179880,1704390665217,-508.630008,0.00033698,7]
[310179881,1704390665228,-508.630008,0.00033698,7]
[310179882,1704390665238,-151.0,0.00033698,7]
[310179883,1704390665249,-321.02533,0.00033698,7]
[310179884,1704390665259,-321.02533,0.00033698,7]
[310179885,1704390665270,-150.0,0.00033708,2]
[310179886,1704390665281,-4372.51596475,0.00033723,5]
[310179887,1704390665292,-150.0,0.00033727,2]
[310179888,1704390665303,-199.09,0.00033746,2]
[310179889,1704390665313,-5800.0,0.000338,12]
[310179890,1704390665324,-300.0,0.00033804,2]
[310179891,1704390665335,-150.0,0.0003382,2]
[310179892,1704390665346,-1500.0,0.00033826,2]
[310179893,1704390665356,-360.63742863,0.00033847,2]
[310179894,1704390665367,-150.0,0.00033848,2]
[310179895,1704390665377,-1500.0,0.00033852,2]
[310179896,1704390665388,-150.0,0.00033854,2]
[310179897,1704390665399,-179.95380034,0.00033872,2]
[310179898,1704390665413,-153.84,0.00033884,2]